Cogmind - Beta 11.1 @@@ ROGUE MODE // 2022.05.15 @ 15:20:11 Player: RX86 Result: Destroyed by G-47 Trooper with Particle Gun Performance ------------- Evolutions (0) 0 Regions Visited (1) 200 Robots Destroyed (3) 15 Value Destroyed (40) 40 Prototype IDs (0) 0 Alien Tech Used (0) 0 Bonus (0) 0 TOTAL SCORE: 255 Bonus ------- None Cogmind --------- Core Integrity 0/250 Matter 239/300 Energy 100/100 System Corruption 0% Temperature Cool (9) Movement Core (50) Location -10/Materials Parts ------- > --- POWER (1) -------- (None) > --- PROPULSION (2) --- (None) > --- UTILITY (2) ------ (None) > --- WEAPON (2) ------- (None) > --- INVENTORY (5) ---- Ion Engine Light Ion Engine Small Storage Unit Peak State ------------ > --- POWER ------------ Light Ion Engine > --- PROPULSION ------- Aluminum Leg Aluminum Leg > --- UTILITY ---------- Small Storage Unit Large Battery > --- WEAPON ----------- EM Pulse Gun Medium Laser > --- INVENTORY -------- Light Ion Engine Light Treads Assault Rifle [Rating: 7] Favorites ----------- Power Light Ion Engine Engine Light Ion Engine Propulsion Aluminum Leg Treads Light Treads Leg Aluminum Leg Flight Unit Flight Unit Utility Small Storage Unit Storage Small Storage Unit Weapon Assault Rifle Energy Gun Medium Laser Ballistic Gun Assault Rifle Build | -11 -10 ------- Run | Scr Mat Slots Evolved . | . . Power . | . . Propulsion . | . . Utility . | . . Weapon . | . . Parts Attached 13 | 4 9 Power 2 | 1 1 Engine 2 | 1 1 Core . | . . Reactor . | . . Propulsion 4 | 2 2 Treads 1 | . 1 Leg 2 | 2 . Wheel . | . . Hover . | . . Flight 1 | . 1 Utility 2 | 1 1 Device . | . . Storage 2 | 1 1 Processor . | . . Hackware . | . . Protection . | . . Artifact . | . . Weapon 5 | . 5 Energy Gun 2 | . 2 Energy Cannon . | . . Ballistic Gun 3 | . 3 Ballistic Cannon . | . . Launcher . | . . Special Weapon . | . . Impact Weapon . | . . Slashing Weapon . | . . Piercing Weapon . | . . Special Melee Weapon . | . . Unidentified Prototypes . | . . Parts Lost 8 | . 8 Power 1 | . 1 Propulsion 4 | . 4 Utility . | . . Weapon 3 | . 3 Highest Loss Streak 4 | . 4 To Critical Strikes . | . . Average Slot Usage (%) 60 | . 60 Engine 7 | . 7 Treads 6 | . 6 Leg 14 | . 14 Flight 4 | . 4 Storage 13 | . 13 Energy Gun 5 | . 5 Ballistic Gun 7 | . 7 Naked Turns 4 | . 4 Heaviest Build 15 | 8 15 Greatest Support 20 | 20 20 Greatest Overweight (x) . | . . Average Overweight (x) . | . . Largest Inventory Capacity 8 | 8 8 Average Capacity 6 | 7 6 Most Carried 5 | 5 5 Average Carried 3 | 3 3 Final Capacity 8 | 8 5 Final Carried 5 | 5 3 Class Distribution -------------------- 100% | Mutant Dominant Class ---------------- Mutant | -10/Materials Resources | -11 -10 ----------- Run | Scr Mat Matter Collected 250 | 203 47 Remotely . | . . Salvage Created 47 | . 47 Parts 7 | . 7 Haulers Intercepted . | . . Recyclers Shooed . | . . Parts Field Recycled . | . . Retrieved Matter . | . . Parts Self-Destructed . | . . Prevented . | . . Kills | -11 -10 ------- Run | Scr Mat Combat Hostiles Destroyed 3 | . 3 Guns 3 | . 3 Classes Destroyed 1 | . 1 Swarmer 3 | . 3 Best Kill Streak 2 | . 2 Combat Bots Only 2 | . 2 Max Kills in Single Turn 1 | . 1 Gunslinging . | . . Exploded . | . . Melee . | . . Uniques/NPCs Destroyed . | . . Combat | -11 -10 -------- Run | Scr Mat Damage Taken 998 | . 998 Core 253 | . 253 Absorbed by Shields . | . . Core Remaining (%) 100 | 100 . Volleys Fired 18 | . 18 Largest 2 | . 2 Hottest 90 | . 90 Shots Fired 29 | . 29 Gun 29 | . 29 Cannon . | . . Launcher . | . . Special . | . . Kinetic 12 | . 12 Thermal 12 | . 12 Explosive . | . . Electromagnetic 5 | . 5 Robot Hit Streak 5 | . 5 Robot Miss Streak 4 | . 4 Penetration Max . | . . Secondary Targets 2 | . 2 Max Gunslinging Chain 1 | . 1 Shots Hit Robots 15 | . 15 Core Hits 5 | . 5 Critical Kills . | . . Critical Parts Destroyed . | . . Critical Strikes 1 | . 1 Burn 1 | . 1 Melee Attacks . | . . Impact . | . . Slashing . | . . Piercing . | . . Sneak Attacks . | . . Combat Hostiles . | . . Follow-up Attacks . | . . Damage Inflicted 203 | . 203 Guns 203 | . 203 Cannons . | . . Explosions . | . . Melee . | . . Ramming . | . . Kinetic 104 | . 104 Thermal 88 | . 88 Explosive . | . . Electromagnetic 11 | . 11 Impact . | . . Slashing . | . . Piercing . | . . Highest Corruption . | . . Average Corruption . | . . Corruption Purged . | . . Corruption Blocked . | . . Overload Shots . | . . Overflow Damage . | . . Projectiles . | . . Explosions . | . . Melee . | . . Knockbacks . | . . Impact . | . . Kinetic . | . . Secondary . | . . Self-Inflicted Damage . | . . Shots . | . . Rammed 1 | . 1 Targets Rammed 1 | . 1 Kicked . | . . Crushed . | . . Highest Temperature 101 | . 101 Average Temperature 39 | . 39 Received Heat Transfer 453 | . 453 Siege Activations . | . . Robots Corrupted . | . . Combat Hostiles . | . . Parts Fried . | . . Impact Corruptions . | . . Robots Melted . | . . Combat Hostiles . | . . Parts Melted 2 | . 2 Heat Transferred 333 | . 333 Parts Sabotaged . | . . Parts Stolen . | . . Parts Stripped . | . . Power Chain Reactions . | . . Missiles Intercepted . | . . Alert | -11 -10 ------- Run | Scr Mat Peak Influence 89 | . 89 Initial . | . . Average 31 | . 37 Maximum Alert Level . | . . Low Security (%) 100 | 100 100 Level 1 . | . . Level 2 . | . . Level 3 . | . . Level 4 . | . . Level 5 . | . . High Security . | . . Max Security . | . . Squads Dispatched 1 | . 1 Investigation . | . . Extermination . | . . Reinforcement 1 | . 1 Assault . | . . Garrison . | . . Intercept . | . . Searches Triggered . | . . Construction Impeded . | . . Haulers Reinforced . | . . Active Scanning Responses . | . . Cargo Convoy Interrupts . | . . Stealth | -11 -10 --------- Run | Scr Mat Distress Signals 2 | . 2 Communications Jammed . | . . Distress Signals . | . . Times Spotted 15 | . 15 Peak Tracking Total 8 | . 8 Tactical Retreats 2 | . 2 Traps | -11 -10 ------- Run | Scr Mat Traps Triggered . | . . Indirectly . | . . Trap Hack Attempts . | . . Triggered . | . . Disarmed . | . . Reprogrammed . | . . Reused . | . . Traps Extracted . | . . Installed . | . . Triggered . | . . Machines | -11 -10 ---------- Run | Scr Mat Machines Disabled 1 | . 1 Max in Single Turn 1 | . 1 Machines Sabotaged . | . . Garrisons Compromised . | . . Overloaded Fab Kills . | . . Hacking | -11 -10 --------- Run | Scr Mat Machines Accessed 7 | . 7 Terminals 7 | . 7 Fabricators . | . . Repair Stations . | . . Recycling Units . | . . Scanalyzers . | . . Garrison Access . | . . Total Hacks 19 | . 19 Successful 11 | . 11 Failed 8 | . 8 Catastrophic . | . . Database Lockouts . | . . Manual 18 | . 18 Terminals 19 | . 19 Fabricators . | . . Repair Stations . | . . Recycling Units . | . . Scanalyzers . | . . Garrison Access . | . . Terminal Hacks 3 | . 3 Terminal Index 1 | . 1 Zone Layout 2 | . 2 Fabricator Hacks . | . . Repair Station Hacks . | . . Recycling Unit Hacks . | . . Scanalyzer . | . . Garrison Access Hacks . | . . Unauthorized Hacks 8 | . 8 Terminals 8 | . 8 Assimilate 2 | . 2 Botnet 6 | . 6 Fabricators . | . . Repair Stations . | . . Recycling Units . | . . Scanalyzers . | . . Garrison Access . | . . Data Cores Recovered . | . . Used . | . . Hacking Detections 6 | . 6 Full Trace Events . | . . Feedback Events . | . . Feedback Blocked . | . . Robot Schematics Acquired . | . . Robots Built . | . . Authchips . | . . Time . | . . Total Robot Build Rating . | . . Part Schematics Acquired . | . . Parts Built . | . . Authchips . | . . Time . | . . Total Part Build Rating . | . . Parts Repaired . | . . Time . | . . Parts Recycled . | . . Recycled Matter . | . . Retrieved Matter . | . . Retrieved Components . | . . Parts Scanalyzed . | . . Part Schematics Acquired . | . . Parts Damaged . | . . Bothacking | -11 -10 ------------ Run | Scr Mat Used RIF Installer . | . . Robots Hacked . | . . Non-combat . | . . Combat . | . . Robot Hacks Applied . | . . Relay Couplers Released . | . . Fabnet Peak Effective % . | . . Robots Rewired . | . . Allies Hacked . | . . Hacks Repelled . | . . Allies | -11 -10 -------- Run | Scr Mat Total Allies . | . . Largest Group . | . . Highest-Rated Group . | . . Highest-Rated Ally . | . . Total Orders . | . . Ally Attacks . | . . Total Damage . | . . Kills . | . . Allies Corrupted . | . . Allies Melted . | . . Intel | -11 -10 ------- Run | Scr Mat Robot Analysis Total . | . . Derelict Logs Recovered . | . . Drone Launches . | . . Drone Recoveries . | . . Exploration | -11 -10 ------------- Run | Scr Mat Turns Passed 385 | 63 322 Spaces Moved 354 | 46 308 Core 11 | 4 7 Treads 14 | . 14 Legs 143 | 42 101 Wheels . | . . Hover . | . . Flight 186 | . 186 Fastest Speed 50 | 50 50 Average Speed 87 | 113 83 Slowest Speed 160 | 120 160 Overloaded Moves . | . . Propulsion Burnouts . | . . Robots Hopped 8 | . 8 Cave-ins Triggered . | . . Exploration Rate (%) 28 | 3 53 Regions Visited 1 Branch Regions . Pre-discovered Areas . | . . Known Exits Taken . | . . Unknown Exits Taken 1 | 1 . Scrap Searched . | . . Spaces Dug . | . . Terrain Destroyed . | . . Melee . | . . Projectile . | . . AOE . | . . Terrain Rammed . | . . Walls Destroyed . | . . Machines Disabled . | . . Actions | -11 -10 --------- Run | Scr Mat Total 388 | 54 334 Wait . | . . Move 338 | 45 293 Hop 7 | . 7 Pick Up 6 | 5 1 Fast Attach 8 | 4 4 Attach 4 | . 4 Detach 2 | . 2 Swap 1 | . 1 Drop 3 | . 3 Fire 18 | . 18 Melee . | . . Ram . | . . Kick . | . . Crush 1 | . 1 Escape Stasis . | . . Rewire . | . . Trap . | . . Miscellaneous . | . . Route ------- -11/Scrapyard -10/Materials (discovered 2 exits: [*Mat] / [*Min]) History --------- Turn | Location | Event 33 | -11/Scrapyard | Discovered new exit (range 15) 64 | -11/Scrapyard | Entered Materials 159 | -10/Materials | Discovered new exit (range 16) 272 | -10/Materials | Core integrity fell below 50% 280 | -10/Materials | Lost 4 parts (1p2n1w) 297 | -10/Materials | Discovered new exit (range 10) 327 | -10/Materials | Build established: Mutant 383 | -10/Materials | Core integrity fell below 20% 386 | -10/Materials | Destroyed by G-47 Trooper with Particle Gun Last Messages --------------- Awaiting botnet instructions. 00283_ Connecting with Terminal... >>Trojan(Assimilate) Trojan loaded successfully. Testing... System interface override in place. 00290_ Connecting with Terminal... >>Trojan(Botnet) Trojan loaded successfully. Testing... Terminal linked with 5 systems. Awaiting botnet instructions. 00297_ EXIT=FOUND 00304_ Acquired Ion Engine. 00306_ Dropped Med. Laser. 00321_ K-01 Serf collects debris. 00361_ Matter Filter disabled. 00366_ Flight Unit destroyed. 00376_ Assault Rifle destroyed. 00382_ Lgt. Treads destroyed. Map ----- +----------------------------------------------------+ | ?????????????# """"" # # #?# #???????????? | | ?????????????# """"" # # ### #???????????? | | #????????????# + # + #???????????? | | ##???????????# """"" # # ### +???????????? | | "##??????????# """"" # # #?# #???????????? | | ""#??????????# """"" # # #?# #???????????? | | #??????????# [# # ### ##??????????? | | #??????????###+###### ###+### #??????????? | | #????????????# #????# #??????????? | | #????????????# #????# T +??????????? | | ##????????????# #????# #??????????? | | ##??????????#### ###### ## #??????????? | | #???????????# ########??????????? | | ############# ############## #?????????????????? | | + T ## ###########??# #?????????????????? | | ## " ## ## #??# #?????????????????? | | ## """[ ## ##"" """ #??# #?????????????????? | | ## """ ! ## ##"T """ #??# #?????????????????? | | ## # #"" """ #??# #?????????????????? | | ## ! # # #??# #??####???????????? | | ## + + = """ #??# #? """???????????? | | ## # # """ #??# # """"???????????? | | ##+######### # """ #??# / """"???????????? | | # #??# # """"???????????? | | ############# # """???????????? | | """ g @g #? ???????????? | | R" ###+############## g #? ?????????? | | """ # #??????# #?? ????????? | | + #??????###### u#???#######???????? | | # "%""""" #???????????# #?????????????????? | | # """"""" #???????????# #?????????????????? | | ### """"""" #???????????# #?????????????????? | | #?# """"""" #???????????# #?????????????????? | | #?# """"""" #???????????# #?????????????????? | | #?# #???????????# #?????????????????? | | #####+########??????????# #?????????????????? | | # #??????????? #?????????????????? | | # ! """ """ #??????????? +?????????????????? | | # """ """ #??????????? #?????????????????? | | ## # """ """ #??????????? #?????????????????? | | ?# # #????????????????????????????????? | | ## ####/#########????????????????????????????????? | | # # #?? ???????????????????????????????????? | | # #! # "" #?????????????????????????????????? | | + # # "" #?????????????????????????????????? | | # # + T" #?????????????????????????????????? | | # # # "" #?????????????????????????????????? | | # ## "" #?????????????????????????????????? | | # ## #?????????????????????????????????? | | # ## #?????????????????????????????????? | +----------------------------------------------------+ Best States ------------- Heat Dissipation 25 Energy Generation 10 Energy Capacity 325 Matter Stores 263 Matter Capacity 300 Sight Range 16 Terrain Scan Density 10 Evasion (%) 58 Recoil Reduction 1 Item Schematics ----------------- None Robot Schematics ------------------ None Fabricated ------------ Nothing Alien Tech Used ----------------- None Achievements -------------- None Challenges ------------ None Game ------ Seed HardenedNuclearRegenerator Manual? 0 Play Time 00:11:11 Cumulative 33.3 hours Start 2022.05.15 @ 15:11:08 End 2022.05.15 @ 15:20:11 Sessions 1 Manual Loads 0 Difficulty Rogue Special Mode None Game No. 20 Rogue 18 Adventurer 0 Explorer 2 Win Type - Total 0 Types 0/0/0/0/0/0/0/0/0 Lore% 24 Gallery% 26 Achievement% 22 Wizard Run 0 Options --------- ASCII 0 Keyboard 0 Movement Numpad Keybinds 0 Fullscreen 1 Font 18/SmallcapsGlow Map View 76x50 Tactical HUD 1 Map Filters NONE Filters NONE Steam 1 RUN: 0fb85c7d-2a4e-4b9c-be49-189ee0c51e0a